[Event "Titled Tuesday Blitz December 14 2021"]
[White "Bacrot, Etienne"]
[Black "Moskalenko, Alexander"]
[WhiteFideId "605506"]
[BlackFideId "4155351"]
[WhiteElo "2673"]
[BlackElo "2515"]
[Result "1/2-1/2"]
[Round "07"]
[TimeControl "180+1"]
[Date "2021.12.14"]
[WhiteClock "0:00:04"]
[BlackClock "0:00:10"]

1. d4 {[%clk 0:03:00]}  d5 {[%clk 0:02:59]} 2. Nf3 {[%clk 0:03:00]}  Nf6 {[%clk 0:02:58]} 3. c4 {[%clk 0:02:59]}  c6 {[%clk 0:02:59]} 4. e3 {[%clk 0:02:59]}  Bf5 {[%clk 0:02:58]} 5. Nc3 {[%clk 0:02:58]}  e6 {[%clk 0:02:57]} 6. Nh4 {[%clk 0:02:58]}  Be4 {[%clk 0:02:54]} 7. f3 {[%clk 0:02:58]}  Bg6 {[%clk 0:02:54]} 8. Qb3 {[%clk 0:02:57]}  Qc7 {[%clk 0:02:52]} 9. Bd2 {[%clk 0:02:56]}  Nbd7 {[%clk 0:02:49]} 10. cxd5 {[%clk 0:02:53]}  exd5 {[%clk 0:02:48]} 11. e4 {[%clk 0:02:42]}  dxe4 {[%clk 0:02:37]} 12. Nxg6 {[%clk 0:02:40]}  hxg6 {[%clk 0:02:38]} 13. fxe4 {[%clk 0:02:39]}  Nb6 {[%clk 0:02:34]} 14. O-O-O {[%clk 0:02:33]}  O-O-O {[%clk 0:02:33]} 15. e5 {[%clk 0:02:24]}  Ng4 {[%clk 0:02:21]} 16. Be2 {[%clk 0:01:44]}  Nf2 {[%clk 0:02:17]} 17. Rhf1 {[%clk 0:01:29]}  Nxd1 {[%clk 0:02:17]} 18. Bg4+ {[%clk 0:01:24]}  f5 {[%clk 0:02:05]} 19. exf6+ {[%clk 0:01:23]}  Kb8 {[%clk 0:02:05]} 20. fxg7 {[%clk 0:01:17]}  Qxg7 {[%clk 0:01:59]} 21. Nxd1 {[%clk 0:01:08]}  Qxd4 {[%clk 0:01:54]} 22. Qc3 {[%clk 0:00:32]}  Bh6 {[%clk 0:01:42]} 23. Qxd4 {[%clk 0:00:25]}  Rxd4 {[%clk 0:01:43]} 24. Bxh6 {[%clk 0:00:24]}  Rxg4 {[%clk 0:01:38]} 25. Bf4+ {[%clk 0:00:22]}  Kc8 {[%clk 0:01:36]} 26. g3 {[%clk 0:00:22]}  Nd5 {[%clk 0:01:31]} 27. Nf2 {[%clk 0:00:22]}  Rxf4 {[%clk 0:01:30]} 28. gxf4 {[%clk 0:00:22]}  Rxh2 {[%clk 0:01:28]} 29. Nd3 {[%clk 0:00:22]}  Rg2 {[%clk 0:01:15]} 30. f5 {[%clk 0:00:17]}  gxf5 {[%clk 0:00:46]} 31. Rxf5 {[%clk 0:00:18]}  a5 {[%clk 0:00:46]} 32. a3 {[%clk 0:00:16]}  a4 {[%clk 0:00:46]} 33. Rf8+ {[%clk 0:00:14]}  Kc7 {[%clk 0:00:46]} 34. Nf4 {[%clk 0:00:14]}  Rg1+ {[%clk 0:00:39]} 35. Kd2 {[%clk 0:00:13]}  Nb6 {[%clk 0:00:36]} 36. Rf7+ {[%clk 0:00:11]}  Kb8 {[%clk 0:00:37]} 37. Nd3 {[%clk 0:00:10]}  Rg2+ {[%clk 0:00:32]} 38. Kc1 {[%clk 0:00:10]}  Rg5 {[%clk 0:00:31]} 39. Kd2 {[%clk 0:00:10]}  Rb5 {[%clk 0:00:31]} 40. Kc3 {[%clk 0:00:10]}  Nd5+ {[%clk 0:00:29]} 41. Kd2 {[%clk 0:00:09]}  Ka7 {[%clk 0:00:29]} 42. Kc2 {[%clk 0:00:09]}  Kb6 {[%clk 0:00:25]} 43. Rh7 {[%clk 0:00:09]}  Ne3+ {[%clk 0:00:21]} 44. Kd2 {[%clk 0:00:08]}  Nc4+ {[%clk 0:00:21]} 45. Kc3 {[%clk 0:00:08]}  Nd6 {[%clk 0:00:19]} 46. Rh4 {[%clk 0:00:08]}  Rb3+ {[%clk 0:00:17]} 47. Kc2 {[%clk 0:00:09]}  Ka5 {[%clk 0:00:17]} 48. Nc5 {[%clk 0:00:09]}  Rg3 {[%clk 0:00:13]} 49. Nxa4 {[%clk 0:00:07]}  b5 {[%clk 0:00:12]} 50. Nc5 {[%clk 0:00:06]}  Nc4 {[%clk 0:00:12]} 51. Nd3 {[%clk 0:00:05]}  Ne3+ {[%clk 0:00:11]} 52. Kd2 {[%clk 0:00:05]}  Nc4+ {[%clk 0:00:09]} 53. Kc3 {[%clk 0:00:05]}  Ne5 {[%clk 0:00:09]} 54. Rd4 {[%clk 0:00:05]}  c5 {[%clk 0:00:09]} 55. Rd5 {[%clk 0:00:05]}  c4 {[%clk 0:00:06]} 56. Rxe5 {[%clk 0:00:05]}  Rxd3+ {[%clk 0:00:06]} 57. Kc2 {[%clk 0:00:05]}  Rh3 {[%clk 0:00:07]} 58. Re8 {[%clk 0:00:05]}  Kb6 {[%clk 0:00:06]} 59. Re6+ {[%clk 0:00:05]}  Kc5 {[%clk 0:00:06]} 60. Re5+ {[%clk 0:00:05]}  Kb6 {[%clk 0:00:07]} 61. Rg5 {[%clk 0:00:05]}  Kc6 {[%clk 0:00:07]} 62. Kd2 {[%clk 0:00:05]}  Kb6 {[%clk 0:00:07]} 63. Kc2 {[%clk 0:00:05]}  Ka5 {[%clk 0:00:08]} 64. Rg8 {[%clk 0:00:05]}  Rh2+ {[%clk 0:00:08]} 65. Kc3 {[%clk 0:00:04]}  Rh3+ {[%clk 0:00:09]} 66. Kc2 {[%clk 0:00:04]}  Kb6 {[%clk 0:00:10]} 67. Rg5 {[%clk 0:00:04]} 1/2-1/2


[Site "https://www.chess.com"]

[Event "Titled Tuesday Blitz December 14 2021"]
[White "Di Nicolantonio, Lucas"]
[Black "Shkapenko, Pavel"]
[WhiteFideId "680460"]
[BlackFideId "4151933"]
[WhiteElo "2381"]
[BlackElo "2386"]
[Result "0-1"]
[Round "07"]
[TimeControl "180+1"]
[Date "2021.12.15"]
[WhiteClock "0:00:03"]
[BlackClock "0:00:11"]

1. d4 {[%clk 0:03:00]}  Nf6 {[%clk 0:02:59]} 2. Bg5 {[%clk 0:02:57]}  Ne4 {[%clk 0:02:58]} 3. Bf4 {[%clk 0:02:57]}  d5 {[%clk 0:02:58]} 4. e3 {[%clk 0:02:57]}  c5 {[%clk 0:02:58]} 5. Bd3 {[%clk 0:02:57]}  Nf6 {[%clk 0:02:58]} 6. c3 {[%clk 0:02:55]}  Nc6 {[%clk 0:02:57]} 7. Nf3 {[%clk 0:02:54]}  Bg4 {[%clk 0:02:57]} 8. O-O {[%clk 0:02:53]}  e6 {[%clk 0:02:57]} 9. Nbd2 {[%clk 0:02:51]}  Be7 {[%clk 0:02:57]} 10. h3 {[%clk 0:02:51]}  Bh5 {[%clk 0:02:56]} 11. Qa4 {[%clk 0:02:45]}  O-O {[%clk 0:02:54]} 12. Rfe1 {[%clk 0:02:30]}  Bg6 {[%clk 0:02:47]} 13. Bxg6 {[%clk 0:02:26]}  hxg6 {[%clk 0:02:48]} 14. dxc5 {[%clk 0:02:20]}  Bxc5 {[%clk 0:02:47]} 15. Rad1 {[%clk 0:02:18]}  Qb6 {[%clk 0:02:44]} 16. b4 {[%clk 0:02:14]}  Be7 {[%clk 0:02:44]} 17. e4 {[%clk 0:02:06]}  dxe4 {[%clk 0:02:41]} 18. Nxe4 {[%clk 0:01:41]}  Nd5 {[%clk 0:02:33]} 19. Bh2 {[%clk 0:01:33]}  Rfd8 {[%clk 0:02:32]} 20. Qb3 {[%clk 0:01:20]}  Nf6 {[%clk 0:02:14]} 21. Ned2 {[%clk 0:01:14]}  Rd7 {[%clk 0:01:47]} 22. Nc4 {[%clk 0:01:12]}  Qd8 {[%clk 0:01:46]} 23. Rxd7 {[%clk 0:01:04]}  Qxd7 {[%clk 0:01:46]} 24. Rd1 {[%clk 0:01:03]}  Qe8 {[%clk 0:01:43]} 25. b5 {[%clk 0:00:58]}  Nb8 {[%clk 0:01:37]} 26. Bd6 {[%clk 0:00:44]}  Nbd7 {[%clk 0:01:34]} 27. Bxe7 {[%clk 0:00:34]}  Qxe7 {[%clk 0:01:35]} 28. Nd6 {[%clk 0:00:34]}  Nc5 {[%clk 0:01:31]} 29. Qb4 {[%clk 0:00:30]}  Nfd7 {[%clk 0:01:00]} 30. Nxb7 {[%clk 0:00:27]}  Rc8 {[%clk 0:00:59]} 31. Nxc5 {[%clk 0:00:21]}  Nxc5 {[%clk 0:00:59]} 32. Ne5 {[%clk 0:00:19]}  Qg5 {[%clk 0:00:44]} 33. Nc6 {[%clk 0:00:18]}  Kh7 {[%clk 0:00:27]} 34. h4 {[%clk 0:00:16]}  Qh5 {[%clk 0:00:27]} 35. Rd4 {[%clk 0:00:15]}  e5 {[%clk 0:00:23]} 36. Rd5 {[%clk 0:00:12]}  Ne6 {[%clk 0:00:23]} 37. Rxe5 {[%clk 0:00:11]}  Qd1+ {[%clk 0:00:22]} 38. Kh2 {[%clk 0:00:12]}  Qd2 {[%clk 0:00:19]} 39. f3 {[%clk 0:00:03]}  Nf4 {[%clk 0:00:17]} 40. Rg5 {[%clk 0:00:03]}  Re8 {[%clk 0:00:13]} 41. c4 {[%clk 0:00:03]}  Qf2 {[%clk 0:00:11]} 42. Qc3 {[%clk 0:00:01]}  Qxh4+ {[%clk 0:00:10]} 43. Kg1 {[%clk 0:00:01]}  Re1+ {[%clk 0:00:09]} 44. Qxe1 {[%clk 0:00:01]}  Qxe1+ {[%clk 0:00:09]} 45. Kh2 {[%clk 0:00:02]}  Qh4+ {[%clk 0:00:10]} 46. Kg1 {[%clk 0:00:03]}  Qxg5 {[%clk 0:00:11]} 0-1


[Site "https://www.chess.com"]

[Event "Titled Tuesday Blitz December 14 2021"]
[White "Gabrielian, Artur"]
[Black "Chigaev, Maksim"]
[WhiteFideId "4131002"]
[BlackFideId "4108116"]
[WhiteElo "2440"]
[BlackElo "2546"]
[Result "0-1"]
[Round "07"]
[TimeControl "180+1"]
[Date "2021.12.14"]
[WhiteClock "0:00:06"]
[BlackClock "0:00:06"]

1. e4 {[%clk 0:03:00]}  e6 {[%clk 0:03:00]} 2. d3 {[%clk 0:03:00]}  d5 {[%clk 0:03:01]} 3. Qe2 {[%clk 0:03:01]}  d4 {[%clk 0:02:55]} 4. Nf3 {[%clk 0:02:59]}  c5 {[%clk 0:02:55]} 5. g3 {[%clk 0:02:59]}  Nc6 {[%clk 0:02:55]} 6. Bg2 {[%clk 0:02:59]}  e5 {[%clk 0:02:56]} 7. O-O {[%clk 0:02:58]}  Bd6 {[%clk 0:02:57]} 8. c3 {[%clk 0:02:57]}  Nge7 {[%clk 0:02:57]} 9. a4 {[%clk 0:02:56]}  Be6 {[%clk 0:02:56]} 10. Na3 {[%clk 0:02:54]}  f6 {[%clk 0:02:54]} 11. Nd2 {[%clk 0:02:54]}  Qd7 {[%clk 0:02:51]} 12. Ndc4 {[%clk 0:02:54]}  Bc7 {[%clk 0:02:24]} 13. f4 {[%clk 0:02:42]}  a6 {[%clk 0:02:20]} 14. fxe5 {[%clk 0:02:36]}  Nxe5 {[%clk 0:02:17]} 15. cxd4 {[%clk 0:02:04]}  cxd4 {[%clk 0:01:47]} 16. Qh5+ {[%clk 0:01:55]}  Bf7 {[%clk 0:01:44]} 17. Nxe5 {[%clk 0:01:54]}  Bxe5 {[%clk 0:01:44]} 18. Qe2 {[%clk 0:01:48]}  O-O {[%clk 0:01:41]} 19. Bf4 {[%clk 0:01:48]}  Ng6 {[%clk 0:01:38]} 20. Bd2 {[%clk 0:01:36]}  Rac8 {[%clk 0:01:36]} 21. a5 {[%clk 0:01:36]}  Bd6 {[%clk 0:01:29]} 22. Rac1 {[%clk 0:01:28]}  Ne5 {[%clk 0:01:29]} 23. h3 {[%clk 0:01:23]}  Qa4 {[%clk 0:01:26]} 24. h4 {[%clk 0:00:49]}  Qb3 {[%clk 0:01:14]} 25. Bf4 {[%clk 0:00:49]}  Rxc1 {[%clk 0:01:10]} 26. Bxc1 {[%clk 0:00:32]}  Qxd3 {[%clk 0:00:58]} 27. Qxd3 {[%clk 0:00:23]}  Nxd3 {[%clk 0:00:59]} 28. e5 {[%clk 0:00:20]}  fxe5 {[%clk 0:00:43]} 29. Bxb7 {[%clk 0:00:20]}  Bxa3 {[%clk 0:00:44]} 30. bxa3 {[%clk 0:00:19]}  Bc4 {[%clk 0:00:45]} 31. Rxf8+ {[%clk 0:00:15]}  Kxf8 {[%clk 0:00:46]} 32. Bd2 {[%clk 0:00:13]}  Ke7 {[%clk 0:00:42]} 33. Be4 {[%clk 0:00:13]}  h6 {[%clk 0:00:41]} 34. h5 {[%clk 0:00:09]}  Kd6 {[%clk 0:00:39]} 35. g4 {[%clk 0:00:08]}  Bb5 {[%clk 0:00:32]} 36. Kh2 {[%clk 0:00:07]}  Nc5 {[%clk 0:00:26]} 37. Bb4 {[%clk 0:00:07]}  Bc6 {[%clk 0:00:26]} 38. Bd3 {[%clk 0:00:06]}  Bb7 {[%clk 0:00:17]} 39. Bc4 {[%clk 0:00:06]}  e4 {[%clk 0:00:17]} 40. Kg3 {[%clk 0:00:07]}  e3 {[%clk 0:00:17]} 41. Kf4 {[%clk 0:00:07]}  Bc8 {[%clk 0:00:12]} 42. Kg3 {[%clk 0:00:08]}  Kc6 {[%clk 0:00:11]} 43. Kf4 {[%clk 0:00:07]}  Bd7 {[%clk 0:00:08]} 44. Ke5 {[%clk 0:00:06]}  d3 {[%clk 0:00:04]} 45. Bxc5 {[%clk 0:00:06]}  Kxc5 {[%clk 0:00:05]} 46. Bxd3 {[%clk 0:00:06]}  Bb5 {[%clk 0:00:05]} 47. Ke4 {[%clk 0:00:05]}  e2 {[%clk 0:00:06]} 48. Bxe2 {[%clk 0:00:06]}  Bxe2 {[%clk 0:00:06]} 0-1


[Site "https://www.chess.com"]

[Event "Titled Tuesday Blitz December 14 2021"]
[White "Dronavalli, Harika"]
[Black "Guseva, Marina"]
[WhiteFideId "5015197"]
[BlackFideId "4149351"]
[WhiteElo "2382"]
[BlackElo "2279"]
[Result "0-1"]
[Round "07"]
[TimeControl "180+1"]
[Date "2021.12.15"]
[WhiteClock "0:00:07"]
[BlackClock "0:00:04"]

1. Nf3 {[%clk 0:02:53]}  Nf6 {[%clk 0:02:59]} 2. c4 {[%clk 0:02:50]}  e6 {[%clk 0:02:59]} 3. g3 {[%clk 0:02:49]}  d5 {[%clk 0:02:59]} 4. b3 {[%clk 0:02:48]}  Be7 {[%clk 0:02:57]} 5. Bg2 {[%clk 0:02:48]}  O-O {[%clk 0:02:56]} 6. O-O {[%clk 0:02:48]}  b6 {[%clk 0:02:56]} 7. Bb2 {[%clk 0:02:48]}  Bb7 {[%clk 0:02:56]} 8. e3 {[%clk 0:02:49]}  dxc4 {[%clk 0:02:54]} 9. bxc4 {[%clk 0:02:49]}  c5 {[%clk 0:02:54]} 10. Qe2 {[%clk 0:02:47]}  Nc6 {[%clk 0:02:54]} 11. Nc3 {[%clk 0:02:47]}  Qc7 {[%clk 0:02:53]} 12. Rfd1 {[%clk 0:02:43]}  Na5 {[%clk 0:02:52]} 13. d3 {[%clk 0:02:37]}  a6 {[%clk 0:02:48]} 14. Rab1 {[%clk 0:02:35]}  Rab8 {[%clk 0:02:47]} 15. a4 {[%clk 0:02:17]}  Rfd8 {[%clk 0:02:23]} 16. Ne1 {[%clk 0:02:11]}  Bxg2 {[%clk 0:02:21]} 17. Nxg2 {[%clk 0:02:11]}  Ne8 {[%clk 0:02:19]} 18. f4 {[%clk 0:02:09]}  Nd6 {[%clk 0:02:17]} 19. g4 {[%clk 0:02:06]}  b5 {[%clk 0:02:17]} 20. axb5 {[%clk 0:02:05]}  axb5 {[%clk 0:02:16]} 21. cxb5 {[%clk 0:01:54]}  Nxb5 {[%clk 0:02:15]} 22. Ne4 {[%clk 0:01:51]}  Nc6 {[%clk 0:02:00]} 23. g5 {[%clk 0:01:46]}  Nd6 {[%clk 0:01:23]} 24. Nxc5 {[%clk 0:01:30]}  Qa7 {[%clk 0:01:16]} 25. Ne4 {[%clk 0:01:14]}  Nxe4 {[%clk 0:01:04]} 26. dxe4 {[%clk 0:01:15]}  Rxd1+ {[%clk 0:01:02]} 27. Rxd1 {[%clk 0:01:15]}  Qa2 {[%clk 0:01:02]} 28. Rd2 {[%clk 0:01:12]}  Qb1+ {[%clk 0:01:01]} 29. Kf2 {[%clk 0:01:10]}  Qxe4 {[%clk 0:01:00]} 30. Qf3 {[%clk 0:00:57]}  Qc4 {[%clk 0:00:39]} 31. Kg3 {[%clk 0:00:51]}  Nb4 {[%clk 0:00:37]} 32. Be5 {[%clk 0:00:48]}  Rc8 {[%clk 0:00:34]} 33. Qd1 {[%clk 0:00:46]}  Nd5 {[%clk 0:00:33]} 34. Rd4 {[%clk 0:00:37]}  Qc6 {[%clk 0:00:24]} 35. Rd3 {[%clk 0:00:29]}  f6 {[%clk 0:00:20]} 36. gxf6 {[%clk 0:00:27]}  Bxf6 {[%clk 0:00:20]} 37. Qh5 {[%clk 0:00:22]}  Bxe5 {[%clk 0:00:19]} 38. Qxe5 {[%clk 0:00:22]}  Nf6 {[%clk 0:00:18]} 39. Rd4 {[%clk 0:00:20]}  Re8 {[%clk 0:00:17]} 40. h3 {[%clk 0:00:16]}  h6 {[%clk 0:00:16]} 41. Kh2 {[%clk 0:00:16]}  Qc2 {[%clk 0:00:16]} 42. e4 {[%clk 0:00:15]}  Kh8 {[%clk 0:00:16]} 43. Kg3 {[%clk 0:00:14]}  Ra8 {[%clk 0:00:15]} 44. Ne3 {[%clk 0:00:07]}  Ra3 {[%clk 0:00:12]} 45. Rd8+ {[%clk 0:00:07]}  Kh7 {[%clk 0:00:11]} 46. Qd4 {[%clk 0:00:08]}  Nxe4+ {[%clk 0:00:10]} 47. Kf3 {[%clk 0:00:08]}  Ra4 {[%clk 0:00:06]} 48. Qd3 {[%clk 0:00:08]}  Qf2+ {[%clk 0:00:05]} 49. Kg4 {[%clk 0:00:07]}  Qg3+ {[%clk 0:00:05]} 50. Kh5 {[%clk 0:00:07]}  g6# {[%clk 0:00:04]} 0-1


[Site "https://www.chess.com"]

[Event "Titled Tuesday Blitz December 14 2021"]
[White "Horvath, Dominik"]
[Black "Gunduz, Umut Erdem"]
[WhiteFideId "1642561"]
[BlackFideId "6381383"]
[WhiteElo "2336"]
[BlackElo "2096"]
[Result "1-0"]
[Round "07"]
[TimeControl "180+1"]
[Date "2021.12.15"]
[WhiteClock "0:00:07"]
[BlackClock "0:00:01"]

1. e4 {[%clk 0:03:00]}  e5 {[%clk 0:02:59]} 2. Nf3 {[%clk 0:03:00]}  Nc6 {[%clk 0:03:00]} 3. Nc3 {[%clk 0:03:01]}  Nf6 {[%clk 0:03:00]} 4. a4 {[%clk 0:03:02]}  d5 {[%clk 0:02:51]} 5. Bb5 {[%clk 0:03:01]}  d4 {[%clk 0:02:18]} 6. Ne2 {[%clk 0:02:56]}  Bd6 {[%clk 0:02:18]} 7. d3 {[%clk 0:02:31]}  Bd7 {[%clk 0:02:16]} 8. O-O {[%clk 0:02:30]}  a6 {[%clk 0:02:13]} 9. Bc4 {[%clk 0:02:30]}  Qe7 {[%clk 0:02:07]} 10. h3 {[%clk 0:02:22]}  Nh5 {[%clk 0:02:01]} 11. c3 {[%clk 0:02:21]}  dxc3 {[%clk 0:01:56]} 12. bxc3 {[%clk 0:02:19]}  f6 {[%clk 0:01:54]} 13. Rb1 {[%clk 0:02:11]}  Nd8 {[%clk 0:01:45]} 14. d4 {[%clk 0:02:04]}  g5 {[%clk 0:01:12]} 15. dxe5 {[%clk 0:01:59]}  fxe5 {[%clk 0:01:13]} 16. Bxg5 {[%clk 0:01:58]}  Qg7 {[%clk 0:01:13]} 17. Ng3 {[%clk 0:01:43]}  Nf4 {[%clk 0:01:08]} 18. Nf5 {[%clk 0:01:18]}  Bxf5 {[%clk 0:01:06]} 19. exf5 {[%clk 0:01:19]}  Nxh3+ {[%clk 0:00:46]} 20. gxh3 {[%clk 0:01:18]}  h6 {[%clk 0:00:46]} 21. f6 {[%clk 0:01:18]}  Qg6 {[%clk 0:00:46]} 22. Bd3 {[%clk 0:01:18]}  Qg8 {[%clk 0:00:47]} 23. Re1 {[%clk 0:01:02]}  Nf7 {[%clk 0:00:25]} 24. Bc4 {[%clk 0:00:50]}  hxg5 {[%clk 0:00:18]} 25. Qd5 {[%clk 0:00:48]}  Kf8 {[%clk 0:00:09]} 26. Rxb7 {[%clk 0:00:34]}  Re8 {[%clk 0:00:09]} 27. Kf1 {[%clk 0:00:30]}  Rxh3 {[%clk 0:00:09]} 28. Nxg5 {[%clk 0:00:18]}  Rh1+ {[%clk 0:00:05]} 29. Qxh1 {[%clk 0:00:17]}  Qxg5 {[%clk 0:00:05]} 30. Bxf7 {[%clk 0:00:10]}  Kxf7 {[%clk 0:00:05]} 31. Qd5+ {[%clk 0:00:10]}  Kxf6 {[%clk 0:00:05]} 32. Re3 {[%clk 0:00:09]}  Rg8 {[%clk 0:00:04]} 33. Rf3+ {[%clk 0:00:09]}  Kg6 {[%clk 0:00:04]} 34. Qf7+ {[%clk 0:00:09]}  Kh6 {[%clk 0:00:01]} 35. Rh3+ {[%clk 0:00:09]}  Qh5 {[%clk 0:00:01]} 36. Qxh5+ {[%clk 0:00:07]}  Kg7 {[%clk 0:00:01]} 37. Qh6+ {[%clk 0:00:07]}  Kf7 {[%clk 0:00:01]} 38. Qxd6 {[%clk 0:00:07]} 1-0


[Site "https://www.chess.com"]

[Event "Titled Tuesday Blitz December 14 2021"]
[White "Ibrahimli, Murad"]
[Black "Tsydypov, Zhamsaran"]
[WhiteFideId "13410229"]
[BlackFideId "4108566"]
[WhiteElo "2109"]
[BlackElo "2614"]
[Result "0-1"]
[Round "07"]
[TimeControl "180+1"]
[Date "2021.12.14"]
[WhiteClock "0:00:05"]
[BlackClock "0:01:38"]

1. d4 {[%clk 0:03:00]}  Nf6 {[%clk 0:02:59]} 2. c4 {[%clk 0:03:01]}  e6 {[%clk 0:02:59]} 3. Nf3 {[%clk 0:03:01]}  Bb4+ {[%clk 0:02:59]} 4. Bd2 {[%clk 0:03:00]}  a5 {[%clk 0:02:59]} 5. g3 {[%clk 0:02:59]}  O-O {[%clk 0:02:59]} 6. Bg2 {[%clk 0:02:59]}  d5 {[%clk 0:02:58]} 7. Qc2 {[%clk 0:02:58]}  c5 {[%clk 0:02:55]} 8. dxc5 {[%clk 0:02:57]}  Bxc5 {[%clk 0:02:52]} 9. cxd5 {[%clk 0:02:53]}  Qb6 {[%clk 0:02:52]} 10. O-O {[%clk 0:02:50]}  exd5 {[%clk 0:02:52]} 11. Nc3 {[%clk 0:02:50]}  Be7 {[%clk 0:02:47]} 12. Bg5 {[%clk 0:02:48]}  Be6 {[%clk 0:02:48]} 13. Rfd1 {[%clk 0:02:35]}  Nc6 {[%clk 0:02:47]} 14. Be3 {[%clk 0:02:30]}  Qa6 {[%clk 0:02:45]} 15. a3 {[%clk 0:02:26]}  Rac8 {[%clk 0:02:44]} 16. h3 {[%clk 0:02:22]}  h6 {[%clk 0:02:43]} 17. Qa4 {[%clk 0:02:12]}  Rfd8 {[%clk 0:02:40]} 18. Rac1 {[%clk 0:02:04]}  Bf8 {[%clk 0:02:20]} 19. Qb5 {[%clk 0:01:43]}  Qa8 {[%clk 0:02:16]} 20. Nd4 {[%clk 0:01:41]}  Bd7 {[%clk 0:02:11]} 21. Qb3 {[%clk 0:01:29]}  Be6 {[%clk 0:02:06]} 22. Na4 {[%clk 0:01:22]}  Nxd4 {[%clk 0:02:03]} 23. Bxd4 {[%clk 0:01:21]}  Rxc1 {[%clk 0:02:03]} 24. Rxc1 {[%clk 0:01:21]}  Ne4 {[%clk 0:02:03]} 25. Rc2 {[%clk 0:00:46]}  Qa6 {[%clk 0:01:56]} 26. e3 {[%clk 0:00:43]}  Bf5 {[%clk 0:01:52]} 27. g4 {[%clk 0:00:40]}  Bg6 {[%clk 0:01:51]} 28. Rc7 {[%clk 0:00:36]}  Qe2 {[%clk 0:01:50]} 29. Rc2 {[%clk 0:00:09]}  Qe1+ {[%clk 0:01:48]} 30. Bf1 {[%clk 0:00:09]}  Ng5 {[%clk 0:01:45]} 31. Bc3 {[%clk 0:00:05]}  Nxh3+ {[%clk 0:01:44]} 32. Kg2 {[%clk 0:00:05]}  Be4+ {[%clk 0:01:44]} 33. f3 {[%clk 0:00:05]}  Bxf3+ {[%clk 0:01:44]} 34. Kxf3 {[%clk 0:00:06]}  Qxf1+ {[%clk 0:01:44]} 35. Kg3 {[%clk 0:00:06]}  Bd6+ {[%clk 0:01:44]} 36. Kh4 {[%clk 0:00:06]}  g5+ {[%clk 0:01:39]} 37. Kh5 {[%clk 0:00:06]}  Nf4+ {[%clk 0:01:39]} 38. Kxh6 {[%clk 0:00:04]}  Qh3+ {[%clk 0:01:39]} 39. Kxg5 {[%clk 0:00:05]}  Ne6+ {[%clk 0:01:39]} 40. Kf5 {[%clk 0:00:05]}  Qf3# {[%clk 0:01:38]} 0-1


[Site "https://www.chess.com"]

[Event "Titled Tuesday Blitz December 14 2021"]
[White "Korchmar, Vasiliy"]
[Black "Koellner, Ruben Gideon"]
[WhiteFideId "24131750"]
[BlackFideId "12993093"]
[WhiteElo "2370"]
[BlackElo "2587"]
[Result "0-1"]
[Round "07"]
[TimeControl "180+1"]
[Date "2021.12.15"]
[WhiteClock "0:00:02"]
[BlackClock "0:00:43"]

1. e4 {[%clk 0:03:00]}  d6 {[%clk 0:03:00]} 2. d4 {[%clk 0:03:00]}  Nf6 {[%clk 0:02:59]} 3. Nc3 {[%clk 0:03:00]}  e5 {[%clk 0:02:58]} 4. Nf3 {[%clk 0:03:00]}  Nbd7 {[%clk 0:02:57]} 5. Bc4 {[%clk 0:03:00]}  Be7 {[%clk 0:02:57]} 6. O-O {[%clk 0:03:01]}  c6 {[%clk 0:02:57]} 7. a4 {[%clk 0:03:00]}  h6 {[%clk 0:02:58]} 8. Re1 {[%clk 0:03:00]}  Qc7 {[%clk 0:02:58]} 9. b3 {[%clk 0:02:57]}  Nf8 {[%clk 0:02:58]} 10. Ba3 {[%clk 0:02:54]}  Ng6 {[%clk 0:02:57]} 11. Bf1 {[%clk 0:02:52]}  O-O {[%clk 0:02:55]} 12. h3 {[%clk 0:02:51]}  Rd8 {[%clk 0:02:55]} 13. Qd2 {[%clk 0:02:49]}  b6 {[%clk 0:02:55]} 14. Rad1 {[%clk 0:02:44]}  a6 {[%clk 0:02:44]} 15. g3 {[%clk 0:02:31]}  b5 {[%clk 0:02:42]} 16. Bg2 {[%clk 0:02:31]}  exd4 {[%clk 0:02:32]} 17. Nxd4 {[%clk 0:02:29]}  c5 {[%clk 0:02:32]} 18. Ndxb5 {[%clk 0:01:54]}  axb5 {[%clk 0:02:27]} 19. Nxb5 {[%clk 0:01:55]}  Qb6 {[%clk 0:02:20]} 20. Bb2 {[%clk 0:01:39]}  Bb7 {[%clk 0:02:16]} 21. Kh2 {[%clk 0:01:39]}  Bc6 {[%clk 0:02:11]} 22. Nc3 {[%clk 0:01:38]}  Qb7 {[%clk 0:02:09]} 23. Nd5 {[%clk 0:01:32]}  Bxd5 {[%clk 0:01:45]} 24. exd5 {[%clk 0:01:33]}  Bf8 {[%clk 0:01:43]} 25. f4 {[%clk 0:00:54]}  Re8 {[%clk 0:01:40]} 26. f5 {[%clk 0:00:49]}  Ne7 {[%clk 0:01:25]} 27. Qf4 {[%clk 0:00:40]}  Qb4 {[%clk 0:00:58]} 28. Qxb4 {[%clk 0:00:12]}  cxb4 {[%clk 0:00:59]} 29. Bxf6 {[%clk 0:00:10]}  gxf6 {[%clk 0:00:58]} 30. g4 {[%clk 0:00:07]}  Rec8 {[%clk 0:00:55]} 31. Be4 {[%clk 0:00:03]}  Rc5 {[%clk 0:00:49]} 32. Rd4 {[%clk 0:00:03]}  Rb8 {[%clk 0:00:48]} 33. Red1 {[%clk 0:00:02]}  h5 {[%clk 0:00:44]} 34. Ra1 {[%clk 0:00:02]}  hxg4 {[%clk 0:00:43]} 35. hxg4 {[%clk 0:00:03]}  Bh6 {[%clk 0:00:43]} 36. a5 {[%clk 0:00:03]}  Bf4+ {[%clk 0:00:43]} 37. Kg2 {[%clk 0:00:02]}  Be5 {[%clk 0:00:43]} 0-1


[Site "https://www.chess.com"]

[Event "Titled Tuesday Blitz December 14 2021"]
[White "Kosakowski, Jakub"]
[Black "Swicarz, Maciej"]
[WhiteFideId "1185080"]
[BlackFideId "1113585"]
[WhiteElo "2340"]
[BlackElo "2131"]
[Result "0-1"]
[Round "07"]
[TimeControl "180+1"]
[Date "2021.12.15"]
[WhiteClock "0:00:02"]
[BlackClock "0:00:05"]

1. b3 {[%clk 0:02:58]}  c5 {[%clk 0:02:59]} 2. Bb2 {[%clk 0:02:59]}  Nc6 {[%clk 0:02:58]} 3. Nf3 {[%clk 0:02:57]}  d5 {[%clk 0:02:54]} 4. e3 {[%clk 0:02:53]}  a6 {[%clk 0:02:54]} 5. d4 {[%clk 0:02:53]}  cxd4 {[%clk 0:02:53]} 6. Nxd4 {[%clk 0:02:54]}  Nf6 {[%clk 0:02:51]} 7. Nxc6 {[%clk 0:02:49]}  bxc6 {[%clk 0:02:52]} 8. Nd2 {[%clk 0:02:49]}  e6 {[%clk 0:02:49]} 9. Bd3 {[%clk 0:02:47]}  Bd6 {[%clk 0:02:46]} 10. O-O {[%clk 0:02:46]}  O-O {[%clk 0:02:46]} 11. e4 {[%clk 0:02:45]}  Nd7 {[%clk 0:02:37]} 12. Re1 {[%clk 0:02:42]}  Qh4 {[%clk 0:02:33]} 13. Nf3 {[%clk 0:02:36]}  Qh5 {[%clk 0:02:33]} 14. Qe2 {[%clk 0:02:32]}  a5 {[%clk 0:02:23]} 15. c4 {[%clk 0:02:25]}  Bb7 {[%clk 0:02:11]} 16. cxd5 {[%clk 0:02:16]}  cxd5 {[%clk 0:02:10]} 17. e5 {[%clk 0:02:15]}  Bb4 {[%clk 0:02:02]} 18. Rec1 {[%clk 0:02:09]}  Rfc8 {[%clk 0:02:01]} 19. a3 {[%clk 0:02:08]}  Bf8 {[%clk 0:01:59]} 20. Qe3 {[%clk 0:01:54]}  Nc5 {[%clk 0:01:53]} 21. Be2 {[%clk 0:01:44]}  Qg6 {[%clk 0:01:47]} 22. Nd4 {[%clk 0:01:42]}  Rab8 {[%clk 0:01:40]} 23. b4 {[%clk 0:01:32]}  axb4 {[%clk 0:01:38]} 24. axb4 {[%clk 0:01:32]}  Nd7 {[%clk 0:01:34]} 25. Bd3 {[%clk 0:00:42]}  Qh5 {[%clk 0:01:30]} 26. Bf1 {[%clk 0:00:25]}  Bxb4 {[%clk 0:01:24]} 27. Rxc8+ {[%clk 0:00:25]}  Rxc8 {[%clk 0:01:23]} 28. Ra7 {[%clk 0:00:25]}  Rb8 {[%clk 0:01:08]} 29. Nb3 {[%clk 0:00:22]}  Bc8 {[%clk 0:00:51]} 30. Qc1 {[%clk 0:00:11]}  h6 {[%clk 0:00:13]} 31. Qc7 {[%clk 0:00:09]}  Qf5 {[%clk 0:00:11]} 32. Nd4 {[%clk 0:00:06]}  Qb1 {[%clk 0:00:10]} 33. Nc6 {[%clk 0:00:06]}  Qxb2 {[%clk 0:00:06]} 34. Nxb8 {[%clk 0:00:06]}  Bc5 {[%clk 0:00:06]} 35. Qxc8+ {[%clk 0:00:04]}  Kh7 {[%clk 0:00:06]} 36. Bd3+ {[%clk 0:00:02]}  g6 {[%clk 0:00:06]} 37. Qxc5 {[%clk 0:00:01]}  Nxc5 {[%clk 0:00:05]} 38. Rxf7+ {[%clk 0:00:02]}  Kg8 {[%clk 0:00:05]} 39. Rf3 {[%clk 0:00:02]}  Nxd3 {[%clk 0:00:05]} 0-1


[Site "https://www.chess.com"]